bitfinex/quotes_ETHUSD_20240707
["timestamp","ask_amount","ask_price","bid_price","bid_amount"]
[1720387237133,2.85307203,2973.1,2972.4,3.39800877]
[1720387237328,3.0,2973.0,2972.4,3.39800877]
[1720387237973,2.41337193,2972.8,2972.4,3.39800877]
[1720387238140,2.4130748,2972.6,2972.2,874.13276435]
[1720387238340,2.4130748,2972.3,2972.2,874.13276435]
[1720387238587,2.41265057,2972.3,2972.2,874.13276435]
[1720387238734,2.41265057,2972.3,2972.2,877.53077312]
[1720387238931,2.41265057,2972.4,2972.2,877.53077312]
[1720387239372,2.41265057,2972.3,2972.2,877.53077312]
[1720387239661,6.676,2972.3,2972.2,874.13276435]
[1720387239859,9.676,2972.3,2972.2,874.13276435]
[1720387240942,9.676,2972.3,2972.2,876.16787639]
[1720387241963,3.0,2972.3,2972.2,876.16787639]
[1720387242263,2.41277793,2972.5,2972.2,876.16787639]
[1720387242470,2.41277793,2972.7,2972.2,876.16787639]
[1720387242636,2.41277793,2972.8,2972.3,3.39800877]
[1720387243174,2.41277793,2973.1,2972.3,3.39800877]
[1720387243484,2.76442954,2973.2,2972.6,1.5]
[1720387243655,0.35165161,2973.2,2972.6,1.5]
[1720387247151,0.35165161,2973.2,2972.7,6.9304]
[1720387247357,0.35165161,2973.2,2972.8,0.84304]
[1720387259888,0.35165161,2973.2,2972.3,10.75550877]
[1720387260090,0.35165161,2973.2,2972.2,876.16787639]
[1720387260091,1.63413774,2972.8,2972.2,874.13276435]
[1720387260264,4.04289085,2972.8,2972.2,874.13276435]
[1720387260470,1.63413774,2972.4,2972.2,874.13276435]
[1720387260666,4.04280995,2972.4,2972.2,874.13276435]
[1720387260866,3.59325103,2972.3,2972.2,874.13276435]
[1720387261079,6.00192324,2972.3,2972.2,874.13276435]
[1720387261390,3.59325103,2972.3,2972.2,874.13276435]
[1720387262167,6.43849507,2972.3,2972.2,874.13276435]
[1720387262685,6.43849507,2972.3,2972.2,873.78083743]
[1720387262884,8.48516018,2972.3,2972.2,873.78083743]
[1720387263080,5.63991614,2972.3,2972.2,873.78083743]
[1720387263392,10.18991614,2972.3,2972.2,873.78083743]
[1720387263602,12.0853845,2972.3,2972.2,863.92603743]
[1720387263963,11.26595431,2972.3,2972.2,863.92603743]
[1720387264191,12.08536344,2972.3,2972.2,863.92603743]
[1720387264394,12.08536344,2972.3,2972.2,849.07703743]
[1720387265177,12.08533152,2972.3,2972.2,849.07703743]
[1720387265981,12.08533152,2972.3,2972.2,848.72514527]
[1720387267006,12.08533152,2972.3,2972.2,833.87614527]
[1720387269715,10.41604232,2972.3,2972.2,833.87614527]
[1720387270009,12.08476092,2972.3,2972.2,833.87614527]
[1720387270375,12.43684355,2972.3,2972.2,833.87614527]
[1720387273074,12.43606084,2972.3,2972.2,833.87614527]
[1720387273478,11.61803694,2972.3,2972.2,833.87614527]
[1720387273691,12.43611981,2972.3,2972.2,833.87614527]
[1720387276081,12.78798038,2972.3,2972.2,833.87614527]
[1720387276276,12.78826623,2972.3,2972.2,833.87614527]
[1720387277309,16.18406956,2972.3,2972.2,833.87614527]
[1720387278501,13.12606623,2972.3,2972.2,833.87614527]
[1720387278702,13.52375882,2972.3,2972.2,833.87614527]
[1720387279616,13.89257803,2972.3,2972.2,817.16477082]
[1720387280117,14.30423106,2972.3,2972.2,810.76025276]
[1720387280320,15.03485235,2972.3,2972.2,808.80604907]
[1720387280494,14.66627458,2972.3,2972.2,808.80604907]
[1720387281504,14.66627458,2972.3,2972.2,808.77794907]
[1720387282233,15.03485235,2972.3,2972.2,808.77794907]
[1720387282436,15.58485235,2972.3,2972.2,808.77794907]
[1720387282637,15.58517216,2972.3,2972.2,808.77794907]
[1720387283003,15.58514085,2972.3,2972.2,808.77794907]
[1720387283626,15.58514085,2972.3,2972.2,806.81228791]
[1720387284364,15.58501079,2972.3,2972.2,806.81228791]
[1720387285079,18.44820986,2972.3,2972.2,767.40713048]
[1720387285200,18.49758393,2972.3,2972.2,741.8787176]
[1720387285406,16.84274043,2972.3,2972.2,734.68196429]
[1720387285613,16.84274043,2972.3,2972.2,700.42886832]
[1720387285614,17.15267696,2972.3,2972.2,700.42886832]
[1720387285828,16.66368058,2972.3,2972.2,683.85929843]
[1720387286138,26.79271725,2972.3,2972.2,679.55508644]
[1720387286340,27.3221877,2972.3,2972.2,673.61720533]
[1720387286649,29.60836896,2972.3,2972.2,667.22167247]
[1720387286937,29.60836896,2972.3,2972.2,647.75912365]
[1720387286938,29.06139042,2972.3,2972.2,647.75912365]
[1720387287240,29.06139042,2972.3,2972.2,631.7815708]
[1720387287241,35.60081998,2972.3,2972.2,631.7815708]
[1720387287443,35.35410232,2972.3,2972.2,625.33868498]
[1720387287604,36.76171916,2972.3,2972.2,613.90178972]
[1720387287802,37.25153148,2972.3,2972.2,601.04748972]
[1720387288027,37.25153148,2972.3,2972.2,599.8506869]
[1720387288233,37.25153148,2972.3,2972.2,598.345423]
[1720387288541,32.32529553,2972.3,2972.2,593.67045532]
[1720387288748,35.96488275,2972.3,2972.2,589.65530997]
[1720387288907,36.36448076,2972.3,2972.2,585.93789997]
[1720387289111,36.37315511,2972.3,2972.2,583.70359024]
[1720387289307,41.12272439,2972.3,2972.2,573.72936076]
[1720387289626,44.25893978,2972.3,2972.2,557.87078008]
[1720387289833,39.48884168,2972.3,2972.2,548.42246158]
[1720387290142,39.48884168,2972.3,2972.2,547.24894292]
[1720387290143,38.27887481,2972.3,2972.2,547.24894292]
[1720387290342,38.27887481,2972.3,2972.2,545.89764292]
[1720387290516,35.39184168,2972.3,2972.2,544.94534292]
[1720387290716,24.46499204,2972.3,2972.2,544.94534292]
[1720387290923,24.46499204,2972.3,2972.2,540.17934292]
[1720387290924,26.10506885,2972.3,2972.2,540.17934292]
[1720387291119,26.10506885,2972.3,2972.2,539.67274292]
[1720387291319,22.53021246,2972.3,2972.2,538.65954292]
[1720387291639,22.53021246,2972.3,2972.2,538.15294292]
[1720387291849,22.53021246,2972.3,2972.2,537.13974292]
[1720387292340,22.53021246,2972.3,2972.2,535.61994292]
[1720387292853,22.53021246,2972.3,2972.2,535.11334292]
[1720387293053,22.72835189,2972.3,2972.2,534.10014292]
[1720387293214,22.72835189,2972.3,2972.2,533.04414292]
[1720387293419,22.72835189,2972.3,2972.2,532.03094292]
[1720387293621,25.72835189,2972.3,2972.2,532.03094292]
[1720387293947,20.65535189,2972.3,2972.2,530.51114292]
[1720387294255,20.65535189,2972.3,2972.2,522.21454292]
[1720387294456,20.65535189,2972.3,2972.2,521.06804292]
[1720387294946,20.65535189,2972.3,2972.2,520.05484292]
[1720387295145,20.65535189,2972.3,2972.2,519.38964292]
[1720387295314,20.65535189,2972.3,2972.2,518.88304292]
[1720387295508,20.65535189,2972.3,2972.2,517.74814292]
[1720387295739,20.65535189,2972.3,2972.2,517.39621611]
[1720387295941,20.65535189,2972.3,2972.2,515.81801611]
[1720387296110,20.65535189,2972.3,2972.2,512.79381725]
[1720387296443,20.65535189,2972.3,2972.2,510.81991725]
[1720387296670,20.65535189,2972.3,2972.2,510.31331725]
[1720387296833,20.65535189,2972.3,2972.2,505.09710741]
[1720387297029,20.65535189,2972.3,2972.2,504.08390741]
[1720387297247,20.65535189,2972.3,2972.2,504.04464542]
[1720387297537,20.65535189,2972.3,2972.2,502.52484542]
[1720387297725,20.65535189,2972.3,2972.2,502.43754542]
[1720387297927,20.65535189,2972.3,2972.2,501.93094542]
[1720387298243,20.65535189,2972.3,2972.2,499.78994542]
[1720387298443,20.65535189,2972.3,2972.2,499.76284542]
[1720387298940,20.65535189,2972.3,2972.2,499.60434542]
[1720387299147,20.65535189,2972.3,2972.2,493.48194542]
[1720387299450,21.01271445,2972.3,2972.2,490.21290155]
[1720387299741,21.01271445,2972.3,2972.2,489.87510155]
[1720387299946,21.01271445,2972.3,2972.2,487.17127155]
[1720387300124,27.28681183,2972.3,2972.2,485.33915656]
[1720387300329,30.52649137,2972.3,2972.2,483.33467906]
[1720387300575,30.82378722,2972.3,2972.2,481.98765825]
[1720387300854,30.29600093,2972.3,2972.2,476.8154811]
[1720387301064,30.16984675,2972.3,2972.2,475.68255288]
[1720387301218,30.41554383,2972.3,2972.2,469.76375488]
[1720387301411,30.64662535,2972.3,2972.2,467.47281266]
[1720387301663,35.69425144,2972.3,2972.2,458.04057453]
[1720387301954,39.4461678,2972.3,2972.2,452.72963926]
[1720387302138,39.4461678,2972.3,2972.2,450.02528926]
[1720387302315,34.39854171,2972.3,2972.2,447.65843926]
[1720387302643,34.39854171,2972.3,2972.2,441.51027926]
[1720387303014,34.7503385,2972.3,2972.2,440.22767926]
[1720387303214,34.7503385,2972.3,2972.2,439.85957926]
[1720387303517,34.3982226,2972.3,2972.2,435.55662469]
[1720387303862,34.3982226,2972.3,2972.2,432.51404469]
[1720387304015,34.3982226,2972.3,2972.2,427.82684469]
[1720387304215,36.20151421,2972.3,2972.2,421.75158683]
[1720387304416,32.44991696,2972.3,2972.2,418.57728683]
[1720387304709,42.56854305,2972.3,2972.2,415.44254788]
[1720387304913,46.32016229,2972.3,2972.2,412.12152788]
[1720387305116,46.32016229,2972.3,2972.2,411.78372788]
[1720387305316,41.2725362,2972.3,2972.2,409.07948788]
[1720387305550,41.2725362,2972.3,2972.2,406.37507788]
[1720387305767,41.2725362,2972.3,2972.2,402.11909042]
[1720387305928,41.2725362,2972.3,2972.2,394.20992281]
[1720387306129,41.2725362,2972.3,2972.2,391.12107281]
[1720387306459,41.2725362,2972.3,2972.2,382.19614281]
[1720387306646,41.04145468,2972.3,2972.2,378.49124723]
[1720387306820,41.39358894,2972.3,2972.2,377.88989247]
[1720387307026,41.6351808,2972.3,2972.2,374.30265821]
[1720387307330,45.06547056,2972.3,2972.2,369.23167821]
[1720387307530,45.28518649,2972.3,2972.2,367.95867821]
[1720387307738,46.60287319,2972.3,2972.2,365.59194821]
[1720387307939,46.60287319,2972.3,2972.2,365.25414821]
[1720387308134,46.60287319,2972.3,2972.2,364.33364821]
[1720387308459,46.60287319,2972.3,2972.2,363.64904821]
[1720387308659,46.60287319,2972.3,2972.2,358.57802821]
[1720387308965,46.60287319,2972.3,2972.2,358.07132821]
[1720387309459,41.53844569,2972.3,2972.2,358.07132821]
[1720387309637,41.53844569,2972.3,2972.2,353.04323221]
[1720387309837,41.53844569,2972.3,2972.2,349.64415221]
[1720387310038,41.53844569,2972.3,2972.2,346.92531219]
[1720387310447,41.53844569,2972.3,2972.2,344.55859219]
[1720387310870,37.38663354,2972.3,2972.2,339.46583531]
[1720387311023,38.9320223,2972.3,2972.2,337.96971485]
[1720387311228,39.21712438,2972.3,2972.2,337.96971485]
[1720387311537,39.21685933,2972.3,2972.2,337.96971485]
[1720387311724,27.87297045,2972.3,2972.2,335.60335485]
[1720387312059,25.53627472,2972.3,2972.2,326.62912485]
[1720387312543,25.53627472,2972.3,2972.2,324.23941485]
[1720387312726,25.27084192,2972.3,2972.2,324.23941485]
[1720387313061,25.27084192,2972.3,2972.2,322.12707093]
[1720387313262,25.27084192,2972.3,2972.2,319.76086093]
[1720387313562,23.73046043,2972.3,2972.2,317.39486093]
[1720387313763,25.36459817,2972.3,2972.2,317.39486093]
[1720387313964,25.36459817,2972.3,2972.2,314.88271093]
[1720387314165,22.41239155,2972.3,2972.2,314.88271093]
[1720387314464,18.12169563,2972.3,2972.2,314.88271093]
[1720387314626,20.43659232,2972.3,2972.2,314.88271093]
[1720387314825,22.07073006,2972.3,2972.2,314.88271093]
[1720387315039,18.12169563,2972.3,2972.2,314.88271093]
[1720387316252,21.12169563,2972.3,2972.2,314.88271093]
[1720387317363,20.76958701,2972.3,2972.2,314.88271093]
[1720387317561,24.71862144,2972.3,2972.2,314.88271093]
[1720387318163,25.26862144,2972.3,2972.2,314.88271093]
[1720387318484,21.31958701,2972.3,2972.2,314.88271093]
[1720387318775,21.31958701,2972.3,2972.2,314.46684276]
[1720387320380,21.31958701,2972.3,2972.2,314.04944276]
[1720387321303,18.31958701,2972.3,2972.2,314.04944276]
[1720387321450,17.76958701,2972.3,2972.2,314.04944276]
[1720387321651,21.20153039,2972.3,2972.2,314.04944276]
[1720387321955,11.20153039,2972.3,2972.2,314.04944276]
[1720387323005,6.8879823,2972.3,2972.2,321.45914276]
[1720387323695,3.30342694,2972.3,2972.2,321.45914276]
[1720387324004,1.6692892,2972.3,2972.2,321.45914276]
[1720387324147,3.30342694,2972.3,2972.2,321.45914276]
[1720387324550,7.26484077,2972.3,2972.2,321.45914276]
[1720387324988,10.81484077,2972.3,2972.2,321.45914276]
[1720387326058,9.14555157,2972.3,2972.2,321.45914276]
[1720387326268,10.81484077,2972.3,2972.2,321.45914276]
[1720387326667,6.85342694,2972.3,2972.2,321.45914276]
[1720387326968,7.25249083,2972.3,2972.2,321.45914276]
[1720387327184,7.60387359,2972.3,2972.2,307.00244276]
[1720387327385,8.38501713,2972.3,2972.2,306.235953]
[1720387327886,8.38501713,2972.3,2972.2,305.00936268]
[1720387328184,18.38501713,2972.3,2972.2,305.00936268]
[1720387329509,18.38501713,2972.3,2972.2,304.45936268]
[1720387329712,18.38501713,2972.3,2972.2,300.9194461]
[1720387330004,18.38501713,2972.3,2972.2,248.41432742]
[1720387330187,18.38501713,2972.3,2972.2,246.16566742]
[1720387330392,22.38501713,2972.3,2972.2,245.48994742]
[1720387330709,72.88501713,2972.3,2972.2,194.98994742]
[1720387330901,76.20764917,2972.3,2972.2,194.98994742]
[1720387331298,78.5446823,2972.3,2972.2,194.31422747]
[1720387331499,74.5446823,2972.3,2972.2,189.98412747]
[1720387331901,71.1446823,2972.3,2972.2,186.58412747]
[1720387332074,71.1446823,2972.3,2972.2,186.47962747]
[1720387332272,67.82205026,2972.3,2972.2,186.37962747]
[1720387332587,71.25764986,2972.3,2972.2,186.20582747]
[1720387332794,71.25764986,2972.3,2972.2,185.78242747]
[1720387332989,45.57976008,2972.3,2972.2,106.3532248]
[1720387333224,43.216187,2972.3,2972.2,100.55588314]
[1720387333407,22.146187,2972.3,2972.2,75.85736811]
[1720387333604,74.57934287,2972.3,2972.2,73.49071811]
[1720387333771,79.07175173,2972.3,2972.2,72.56291811]
[1720387333975,81.40841472,2972.3,2972.2,72.29321811]
[1720387334175,81.40841472,2972.3,2972.2,65.17651611]
[1720387334406,81.40841472,2972.3,2972.2,62.03484611]
[1720387334621,82.48041472,2972.3,2972.2,50.93829411]
[1720387334987,82.48041472,2972.3,2972.2,50.81099411]
[1720387335189,82.48041472,2972.3,2972.2,50.78199411]
[1720387335390,82.48041472,2972.3,2972.2,50.64599411]
[1720387335723,79.8530633,2972.3,2972.2,50.64599411]
[1720387335900,82.1900823,2972.3,2972.2,47.88538239]
[1720387336223,81.83797208,2972.3,2972.2,47.34101643]
[1720387336394,81.83797208,2972.3,2972.2,47.15641643]
[1720387336596,88.11788378,2972.3,2972.2,47.09961643]
[1720387336797,88.11788378,2972.3,2972.2,42.32213643]
[1720387337218,88.11788378,2972.3,2972.2,42.00243643]
[1720387337420,88.11788378,2972.3,2972.2,41.42353643]
[1720387337613,88.11788378,2972.3,2972.2,41.3981791]
[1720387337841,88.11788378,2972.3,2972.2,39.0330831]
[1720387338159,88.11788378,2972.3,2972.2,33.7681251]
[1720387338314,88.11788378,2972.3,2972.2,33.0825251]
[1720387338522,88.11788378,2972.3,2972.2,24.0381438]
[1720387338828,84.9726166,2972.3,2972.2,21.02375652]
[1720387339030,87.76917757,2972.3,2972.2,15.89751038]
[1720387339339,85.16226517,2972.3,2972.2,15.72291038]
[1720387339635,87.47877517,2972.3,2972.2,6.06860738]
[1720387340617,86.80869011,2972.3,2972.2,5.33860738]
[1720387340822,86.80869011,2972.3,2972.2,5.31860738]
[1720387341112,1.61250671,2972.0,2970.1,6.9103]
[1720387341322,1.61284851,2971.1,2970.1,6.7322]
[1720387341522,1.65858476,2970.9,2969.2,0.1096797]
[1720387341728,1.67841045,2970.0,2969.2,0.1096797]
[1720387341928,6.676,2969.9,2969.2,0.1096797]
[1720387342123,1.69968156,2969.7,2969.2,0.1096797]
[1720387343444,1.69968156,2969.7,2968.7,0.011]
[1720387344530,1.69968156,2969.7,2968.8,6.9995]
[1720387344729,6.80510228,2969.7,2968.8,6.9995]
[1720387344928,3.0,2969.6,2968.8,6.9995]
[1720387345444,1.6627816,2969.5,2968.8,6.9995]
[1720387345630,1.68973348,2969.6,2968.8,6.9995]
[1720387349027,1.68973348,2969.6,2968.8,6.85152505]
[1720387349633,4.0,2969.4,2968.8,6.85152505]
[1720387349820,11.32581233,2969.3,2968.8,6.85152505]
[1720387350026,11.49581233,2969.3,2968.8,6.85152505]
[1720387350253,0.04387636,2969.2,2968.8,6.85152505]
[1720387350453,1.67532501,2969.7,2968.8,0.68625251]
[1720387350757,1.64733931,2970.1,2968.7,0.011]
[1720387350939,3.40310737,2968.8,2968.7,0.011]
[1720387351322,1.609301,2969.3,2968.7,0.011]
[1720387351520,3.40362216,2968.8,2968.7,0.011]
[1720387351719,1.64472216,2968.8,2968.7,0.011]
[1720387351932,3.40383772,2968.9,2968.7,0.011]
[1720387352145,3.40383772,2969.0,2968.7,0.011]
[1720387352658,3.0,2968.9,2968.7,0.011]
[1720387355860,6.744,2969.2,2968.7,0.011]
[1720387355861,6.40383772,2969.0,2968.7,0.011]
[1720387356664,3.40383772,2968.9,2968.7,0.011]
[1720387356825,3.0,2968.8,2968.7,0.011]
[1720387357252,3.40365378,2968.8,2968.7,0.011]
[1720387357526,6.40365378,2968.8,2968.7,0.011]
[1720387357959,3.0,2968.8,2968.7,0.011]
[1720387358162,3.40354182,2968.8,2968.7,0.011]
[1720387358528,6.40354182,2968.8,2968.7,0.011]
[1720387358742,3.0,2968.8,2968.7,0.011]
[1720387359865,6.744,2969.2,2968.7,0.011]
[1720387359866,6.40354182,2968.9,2968.7,0.011]
[1720387360462,3.0,2968.9,2968.7,0.011]
[1720387360968,6.40354182,2968.9,2968.7,0.011]
[1720387362345,3.0,2968.9,2968.7,0.011]
[1720387362546,3.0,2969.1,2968.7,0.011]
[1720387369080,3.4090456,2968.8,2968.7,0.011]
[1720387369281,3.0,2968.8,2968.7,0.011]
[1720387369662,3.0,2969.1,2968.7,0.011]
[1720387371353,3.0,2969.1,2967.9,0.06737206]
[1720387371665,3.41575455,2968.5,2968.4,1.8925]
[1720387371848,10.15975455,2968.5,2968.4,1.8925]
[1720387372049,13.15975455,2968.5,2968.4,2.1173983]
[1720387372276,9.744,2968.5,2968.4,2.1173983]
[1720387373569,9.744,2968.5,2968.4,1.8925]
[1720387380599,3.0,2968.5,2968.4,1.8925]
[1720387380896,3.0,2968.7,2968.4,1.8925]
[1720387381788,3.97029193,2968.8,2968.4,1.8925]
[1720387381950,6.746,2969.0,2968.5,1.96366428]
[1720387382149,6.746,2969.0,2968.6,0.38561643]
[1720387382355,6.746,2969.0,2968.7,1.8963]
[1720387382616,3.42327717,2968.8,2968.7,1.8963]
[1720387382905,6.746,2969.0,2968.7,1.8963]
[1720387383081,6.746,2969.0,2968.9,1.8963]
[1720387383774,9.746,2969.0,2968.9,1.8963]
[1720387384191,6.746,2969.0,2968.9,1.8963]
[1720387385765,9.746,2969.0,2968.9,1.8963]
[1720387390072,13.71629193,2969.0,2968.9,1.8963]
[1720387390987,9.746,2969.0,2968.9,1.8963]
[1720387391369,13.71629193,2969.0,2968.9,1.53849203]
[1720387392191,9.746,2969.0,2968.9,1.53849203]
[1720387392485,13.73743276,2969.0,2968.9,1.53849203]
[1720387394003,9.746,2969.0,2968.9,1.53849203]
[1720387395603,6.746,2969.0,2968.9,1.53849203]
[1720387396713,6.746,2969.0,2968.3,0.35648304]
[1720387396714,7.481,2968.9,2968.3,0.35648304]
[1720387396912,0.99002743,2968.8,2968.3,0.35648304]
[1720387397206,0.99002743,2968.8,2966.3,1.8492]
[1720387397207,2.3995123,2968.8,2966.3,1.8492]
[1720387397371,5.12703592,2968.1,2966.3,1.8492]
[1720387397580,5.12703592,2968.1,2962.9,2.028]
[1720387397772,5.12703592,2968.1,2961.3,2.99807662]
[1720387397773,1.5,2961.4,2961.3,0.012]
[1720387397973,1.5,2961.4,2960.7,2.33430431]
[1720387397974,1.3343,2960.9,2960.8,2.9787961]
[1720387398225,4.18058375,2960.9,2960.8,2.9787961]
[1720387398428,4.18058375,2960.9,2960.7,0.21022727]
[1720387398429,1.5,2960.8,2960.7,0.21022727]
[1720387398734,1.5,2960.8,2956.6,3.10139997]
[1720387398735,2.8343,2957.4,2956.6,3.10139997]
[1720387398892,9.7139,2956.7,2956.6,2.62726272]
[1720387399074,9.7139,2956.7,2954.3,0.1096797]
[1720387399075,1.1843,2954.4,2954.3,0.1096797]
[1720387399275,1.1843,2954.4,2950.4,2.42719222]
[1720387399276,2.6843,2953.2,2951.0,0.3357]
[1720387399514,2.6843,2953.2,2951.7,0.0665235]
[1720387399515,1.00900573,2952.6,2951.7,0.0665235]
[1720387399720,4.61213137,2952.1,2951.7,0.0665235]
[1720387400013,4.61213137,2952.1,2948.3,3.27060772]
[1720387400014,6.8796,2952.5,2948.3,3.27060772]
[1720387400015,4.37558605,2948.4,2948.3,2.17581352]
[1720387400312,4.37558605,2948.4,2943.7,0.25]
[1720387400313,1.68308353,2948.3,2943.7,0.25]
[1720387400513,5.6843,2948.1,2943.7,0.25]
[1720387400856,8.0639,2944.5,2943.7,0.25]
[1720387400968,17.58587489,2944.5,2944.0,3.0]
[1720387401170,17.58587489,2944.5,2940.1,3.17507094]
[1720387401171,1.5,2942.6,2940.1,3.17507094]
[1720387401411,6.84,2942.5,2940.2,7.0076]
[1720387401570,6.866,2942.6,2940.2,7.0076]
[1720387401772,6.866,2942.6,2940.3,0.29757902]
[1720387401968,0.05935094,2942.8,2940.4,7.0076]
[1720387402212,10.0,2944.9,2942.8,7.0076]
[1720387402422,0.66038554,2949.4,2944.9,7.0076]
[1720387402423,3.0,2947.3,2944.9,7.0076]
[1720387402736,1.68753852,2951.6,2947.4,1.5]
[1720387402871,10.05822145,2953.4,2949.4,1.5]
[1720387403066,10.0,2953.6,2948.6,7.2598]
[1720387403067,11.5,2953.6,2949.9,1.5]
[1720387403276,11.5,2953.6,2948.6,7.2598]
[1720387403277,0.01401319,2953.5,2951.6,0.35289181]
[1720387403508,0.01401319,2953.5,2952.2,1.5]
[1720387403693,0.01401319,2953.5,2951.7,1.5]
[1720387403915,0.01401319,2953.5,2952.9,1.5]
[1720387404093,0.01401319,2953.5,2951.8,0.18528918]
[1720387404094,0.01401319,2953.5,2953.1,1.5]
[1720387404273,0.05910988,2959.5,2951.8,0.18528918]
[1720387404274,10.0,2956.6,2953.4,1.5]
[1720387404471,10.0,2956.6,2953.6,1.5]
[1720387404673,6.75,2956.5,2953.6,1.5]
[1720387405010,10.0,2956.2,2953.9,1.5]
[1720387405309,10.0,2956.2,2954.5,1.5]
[1720387405607,0.07748049,2956.1,2954.7,1.5]
[1720387405780,0.07748049,2956.1,2955.1,1.5]
[1720387405987,0.07748049,2956.1,2955.2,0.55]
[1720387405988,0.28248049,2956.1,2955.2,0.55]
[1720387406201,0.28248049,2956.1,2953.6,6.3700925]
[1720387406202,0.07748049,2956.1,2953.6,6.3700925]
[1720387406641,1.43557649,2956.1,2953.6,7.8700925]
[1720387406775,1.43557649,2956.1,2954.1,15.762]
[1720387406974,11.5,2958.8,2954.3,1.5]
[1720387407175,1.5,2958.6,2954.3,1.5]
[1720387407405,0.03685879,2957.9,2954.3,1.5]
[1720387407582,0.03685879,2957.9,2954.7,1.5]
[1720387407785,6.752,2957.8,2954.7,1.5]
[1720387408084,6.752,2957.8,2954.4,1.5]
[1720387408085,8.109299,2957.8,2955.3,1.5]
[1720387408296,6.752,2957.8,2955.4,0.55]
[1720387408510,6.752,2957.8,2955.5,0.205]
[1720387408818,6.752,2957.8,2955.6,2.05]
[1720387409125,3.2521,2957.8,2955.2,15.50362872]
[1720387409419,3.2521,2957.8,2954.4,1.5]
[1720387409621,3.2521,2957.8,2954.2,3.0762]
[1720387409803,3.2521,2957.8,2953.9,1.5]
[1720387409987,3.2521,2957.8,2953.6,6.3700925]
[1720387411101,3.03698371,2957.7,2953.6,7.8700925]
[1720387411301,3.03698371,2957.7,2954.4,15.762]
[1720387411689,0.03698371,2957.7,2954.4,15.762]
[1720387411895,0.03698371,2957.7,2954.5,1.5762]
[1720387412131,0.03698371,2957.7,2954.6,0.55]
[1720387412993,0.03698371,2957.7,2954.4,29.95751681]
[1720387413188,0.03698371,2957.7,2953.7,1.5]
[1720387413404,1.5,2957.5,2953.8,0.78700925]
[1720387413611,0.03698371,2957.4,2953.8,0.78700925]
[1720387414442,0.03698371,2957.4,2953.6,5.27096179]
[1720387414948,0.03698371,2957.4,2953.6,5.22096179]
[1720387415404,1.5,2957.3,2953.6,5.22096179]
[1720387415737,3.28920706,2957.2,2954.2,3.86942]
[1720387415945,3.28920706,2957.2,2954.3,0.3378]
[1720387416092,3.28920706,2957.2,2955.0,15.762]
[1720387417028,3.28920706,2957.2,2953.7,0.49409618]
[1720387417029,0.03710706,2957.1,2953.8,15.762]
[1720387417347,0.36602777,2957.1,2953.9,1.86259462]
[1720387417800,0.36602777,2957.1,2954.0,0.3378]
[1720387418001,3.36602777,2957.1,2954.0,0.3378]
[1720387418191,3.66181278,2957.0,2953.9,1.86259462]
[1720387418413,3.66181278,2957.0,2953.7,0.49409618]
[1720387418601,3.0,2956.9,2953.7,0.49409618]
[1720387418901,0.66181278,2957.0,2953.7,0.49409618]
[1720387419101,0.66181278,2957.0,2953.6,3.19993908]
[1720387419428,1.90278406,2956.9,2953.7,0.31999391]
[1720387419631,4.93989112,2956.9,2953.7,0.31999391]
[1720387419928,1.5,2956.6,2953.6,2.26239184]
[1720387420229,1.5,2956.6,2950.0,4.00708098]
[1720387420230,3.2521,2956.5,2953.3,1.5]
[1720387420407,0.32521,2956.4,2953.7,15.762]
[1720387420606,0.36231706,2956.4,2953.7,15.762]
[1720387420805,0.36231706,2956.4,2953.7,17.262]
[1720387421004,0.36231706,2956.4,2953.7,15.762]
[1720387421396,0.36231706,2956.4,2953.8,0.55]
[1720387421593,0.36144171,2956.3,2953.9,1.6312]
[1720387421824,0.36144171,2956.3,2954.1,3.559]
[1720387422129,0.36144171,2956.3,2954.2,0.55]
[1720387423129,3.03710706,2956.4,2954.3,3.559]
[1720387423347,3.03710706,2956.4,2954.4,4.109]
[1720387423646,3.03710706,2956.4,2954.5,0.55]
[1720387423861,3.0,2956.4,2954.2,0.55]
[1720387424148,3.0,2956.4,2953.9,1.6312]
[1720387424149,0.66231706,2956.3,2954.0,0.55]
[1720387424447,0.03710706,2956.3,2954.0,0.55]
[1720387424648,0.03710706,2956.3,2952.9,2.37048]
[1720387424649,1.5,2956.1,2952.8,0.37960546]
[1720387424795,0.03710706,2956.3,2951.4,6.8846]
[1720387424796,1.67933564,2955.3,2951.4,6.8846]
[1720387424994,1.5,2955.4,2950.5,17.262]
[1720387424995,7.2313,2954.5,2950.5,15.762]
[1720387425195,1.5,2953.8,2950.3,6.8846]
[1720387425400,1.5,2953.8,2948.4,2.37416]
[1720387425401,1.5,2953.1,2947.7,6.8846]
[1720387425731,12.03150574,2953.2,2948.2,15.44655054]
[1720387425732,3.14469705,2952.1,2948.2,15.44655054]
[1720387425927,7.88595581,2952.0,2948.3,1.54465505]
[1720387426234,3.14469705,2951.1,2948.3,1.54465505]
[1720387426429,3.2521,2951.0,2948.3,5.10365505]
[1720387426661,3.0,2950.9,2948.3,5.10365505]
[1720387427244,3.14469705,2951.1,2948.5,3.559]
[1720387427405,3.14469705,2951.1,2948.4,1.5]
[1720387427406,3.14469705,2951.5,2948.7,3.559]
[1720387427625,3.0,2951.4,2948.7,3.559]
[1720387427828,6.14469705,2951.6,2948.7,3.559]
[1720387428033,3.0,2951.6,2948.7,5.059]
[1720387428242,7.31765251,2951.6,2949.1,2.37358]
[1720387428403,3.0,2951.6,2949.3,0.3378]
[1720387428901,3.0,2951.6,2949.2,0.743258]
[1720387428902,3.18000175,2951.5,2948.9,0.3378]
[1720387429110,3.1429353,2951.2,2948.6,0.4559]
[1720387429354,7.48072964,2951.4,2948.3,1.54465505]
[1720387429355,3.1429353,2950.9,2948.3,1.54465505]
[1720387429512,4.48072964,2950.8,2948.3,1.54465505]
[1720387429716,7.31795387,2950.7,2948.3,1.54465505]
[1720387429911,7.31795387,2950.7,2948.3,5.10365505]
[1720387429912,4.31803365,2950.6,2948.3,5.10365505]
[1720387430154,3.0,2950.7,2948.4,5.61402056]
[1720387430355,4.17504241,2950.7,2948.4,5.61402056]
[1720387430507,3.1429353,2950.9,2948.4,7.98815056]
[1720387430708,3.1429353,2951.3,2949.3,15.762]
[1720387430903,3.1429353,2951.4,2949.3,15.762]
[1720387431124,3.14315284,2951.5,2949.2,3.559]
[1720387431375,3.14315284,2950.7,2949.2,3.5338]
[1720387431745,3.14303291,2950.7,2949.2,3.5086]
[1720387431944,3.14303291,2950.8,2949.4,3.5086]